bitfinex/quotes_SOLUSD_20240930
["timestamp","ask_amount","ask_price","bid_price","bid_amount"]
[1727664844123,6.63338,156.68,156.67,0.8119886]
[1727664844443,30.410264,156.68,156.67,0.8119886]
[1727664846044,31.52248419,156.68,156.67,0.8119886]
[1727664847837,25.14008419,156.68,156.67,0.8119886]
[1727664849325,31.52248419,156.68,156.67,0.8119886]
[1727664849537,30.410664,156.67,156.66,2.15]
[1727664856953,0.25098,156.62,156.56,2.15]
[1727664857122,30.414764,156.57,156.56,2.15]
[1727664857446,23.776884,156.57,156.56,2.15]
[1727664857620,6.3856,156.61,156.56,18.4494]
[1727664857948,0.12549,156.6,156.56,18.4494]
[1727664858246,23.776884,156.59,156.56,18.4494]
[1727664858746,0.12549,156.6,156.56,18.4494]
[1727664858916,6.3863,156.59,156.56,18.4494]
[1727664859114,15.9604,156.64,156.56,18.4494]
[1727664859317,6.3856,156.6,156.56,18.4494]
[1727664859851,6.3862,156.59,156.56,18.4494]
[1727664860034,6.3869,156.57,156.56,2.15]
[1727664860637,23.776884,156.57,156.56,2.15]
[1727664860941,6.6063,156.65,156.56,2.15]
[1727664860942,2.61851893,156.63,156.56,2.15]
[1727664861144,43.902374,156.64,156.56,2.15]
[1727664861527,20.0,156.64,156.56,2.15]
[1727664861734,6.3869,156.57,156.56,2.15]
[1727664862045,15.9628,156.62,156.56,2.15]
[1727664862245,6.3865,156.58,156.56,2.15]
[1727664862621,23.776884,156.57,156.56,2.15]
[1727664862823,6.3865,156.58,156.56,2.15]
[1727664865549,6.3856,156.6,156.56,17.4154]
[1727664866458,7.49824606,156.6,156.56,17.4154]
[1727664867045,1.11264606,156.6,156.56,23.8783]
[1727664868584,6.3869,156.57,156.56,23.8783]
[1727664868735,23.776884,156.59,156.56,23.8783]
[1727664868931,6.3865,156.58,156.56,23.8783]
[1727664872742,23.776884,156.59,156.56,23.8783]
[1727664872958,30.163084,156.59,156.56,23.8783]
[1727664873865,1.11264606,156.6,156.56,23.8783]
[1727664874062,6.3854,156.61,156.56,23.8783]
[1727664877976,1.11257448,156.62,156.56,23.8783]
[1727664878145,7.49747448,156.62,156.56,23.8783]
[1727664878551,1.11257448,156.62,156.56,23.8783]
[1727664878970,6.3869,156.57,156.56,23.8783]
[1727664879270,6.3865,156.58,156.56,23.8783]
[1727664880459,6.3865,156.58,156.56,17.4154]
[1727664883474,0.12549,156.61,156.56,17.4154]
[1727664883675,6.386,156.6,156.56,17.4154]
[1727664884058,1.11257448,156.62,156.56,17.4154]
[1727664884278,30.162184,156.61,156.56,17.4154]
[1727664884876,6.3857,156.6,156.56,17.4154]
[1727664888878,1.11257448,156.62,156.56,17.4154]
[1727664889075,6.3853,156.61,156.56,17.4154]
[1727664890765,6.3857,156.6,156.56,17.4154]
[1727664893771,6.3867,156.58,156.56,2.15]
[1727664894794,1.11272204,156.59,156.56,2.15]
[1727664894964,7.49882204,156.59,156.56,2.15]
[1727664897366,1.11272204,156.59,156.56,2.15]
[1727664899260,6.3865,156.58,156.56,2.15]
[1727664901864,1.11272204,156.59,156.56,2.15]
[1727664902182,30.163784,156.57,156.56,2.15]
[1727664903568,7.49912204,156.59,156.56,2.15]
[1727664906994,1.11272204,156.59,156.56,2.15]
[1727664907384,12.98394479,156.64,156.56,2.15]
[1727664907580,1.11232082,156.61,156.58,6.4264]
[1727664907984,6.3841,156.64,156.58,6.4264]
[1727664908189,1.11243046,156.62,156.58,6.4264]
[1727664908780,6.3837,156.65,156.58,6.4264]
[1727664909099,1.1123883,156.63,156.58,6.4264]
[1727664910902,6.3837,156.65,156.58,6.4264]
[1727664911103,1.11234088,156.64,156.58,6.4264]
[1727664913190,1.11234088,156.64,156.59,1.27712026]
[1727664913394,6.3825,156.68,156.59,1.27712026]
[1727664913715,1.11206819,156.66,156.61,15.0995]
[1727664913911,1.11206819,156.66,156.62,1.27682487]
[1727664914112,1.11206819,156.66,156.61,15.0995]
[1727664914306,6.382,156.69,156.62,1.27682483]
[1727664914607,1.11198234,156.68,156.61,15.0995]
[1727664914814,1.11198234,156.68,156.62,6.1569]
[1727664920912,1.11198234,156.68,156.64,10.25164019]
[1727664921115,6.3808,156.72,156.64,10.25164019]
[1727664921116,6.3808,156.72,156.65,1.27654026]
[1727664921305,1.11178077,156.71,156.65,1.27654026]
[1727664921707,1.11178077,156.71,156.66,16.1918]
[1727664925333,1.11178077,156.71,156.68,10.25164019]
[1727664925504,11.2252,156.79,156.69,1.27625742]
[1727664925705,1.11153139,156.75,156.69,1.27625742]
[1727664925911,1.11153139,156.75,156.67,6.5914]
[1727664926115,6.60181282,156.79,156.67,6.5914]
[1727664926116,6.3804,156.73,156.67,6.5914]
[1727664926421,7.49170012,156.74,156.67,6.5914]
[1727664929119,24.027864,156.73,156.67,6.5914]
[1727664929534,24.027864,156.73,156.66,16.1918]
[1727664929900,39.979664,156.73,156.66,16.1918]
[1727664930100,6.3825,156.68,156.66,16.1918]
[1727664930297,0.25098,156.67,156.63,6.5914]
[1727664930509,6.383,156.67,156.63,6.5914]
[1727664931201,6.3835,156.66,156.63,6.5914]
[1727664931811,6.3828,156.67,156.63,6.5914]
[1727664934809,30.160084,156.66,156.63,6.5914]
[1727664936002,30.160084,156.66,156.62,16.4249]
[1727664937434,0.25098,156.65,156.59,6.5914]
[1727664937735,23.776884,156.62,156.59,6.5914]
[1727664941926,23.776884,156.62,156.58,16.4249]
[1727664942715,0.12549,156.61,156.58,16.4249]
[1727664945857,0.25098,156.61,156.58,16.4249]
[1727664946025,6.3862,156.59,156.56,2.15]
[1727664946543,1.11280263,156.58,156.56,2.15]
[1727664946918,7.49940263,156.58,156.56,2.15]
[1727664949936,1.11280263,156.58,156.56,2.15]
[1727664956842,23.776884,156.58,156.56,2.15]
[1727664957227,24.88969569,156.58,156.56,2.15]
[1727664958546,30.414764,156.57,156.56,2.15]
[1727664959928,24.027864,156.57,156.56,2.15]
[1727664960243,23.902374,156.57,156.56,2.15]
[1727664960454,23.776884,156.57,156.56,2.15]
[1727664961856,1.11281169,156.58,156.56,2.15]
[1727664967028,6.3852,156.62,156.56,2.15]
[1727664967234,1.11262069,156.61,156.56,2.15]
[1727664967733,11.2252,156.67,156.57,6.5325]
[1727664968145,1.11246855,156.63,156.57,6.5325]
[1727664968354,0.12549,156.63,156.57,6.5325]
[1727664968526,1.11243625,156.62,156.57,6.5325]
[1727664973333,6.3837,156.65,156.57,6.5325]
[1727664973655,1.11237226,156.63,156.57,6.5325]
[1727664979957,24.027864,156.62,156.56,2.15]
[1727664980254,6.3862,156.59,156.56,2.15]
[1727664982256,0.12549,156.61,156.56,2.15]
[1727664982460,6.51109,156.61,156.56,2.15]
[1727664987165,6.3856,156.61,156.56,2.15]
[1727664988671,7.49687226,156.63,156.56,3.42738132]
[1727664990247,24.027864,156.62,156.56,2.15]
[1727664990446,23.776884,156.6,156.56,2.15]
[1727664992790,1.11237226,156.63,156.56,2.15]
[1727664992953,7.49677226,156.63,156.56,2.15]
[1727664993370,1.11237226,156.63,156.56,2.15]
[1727664993751,7.49697226,156.63,156.56,2.15]
[1727664994288,6.51069,156.62,156.56,2.15]
[1727664994878,1.11252118,156.61,156.56,2.15]
[1727664996854,7.49782118,156.61,156.56,2.15]
[1727664997054,1.11252118,156.61,156.56,2.15]
[1727664999157,24.027864,156.6,156.56,2.15]
[1727664999753,30.414764,156.57,156.56,2.15]
[1727665013398,30.415464,156.56,156.51,0.8119886]
[1727665015191,1.11307258,156.55,156.51,0.8119886]
[1727665016993,23.776884,156.54,156.51,0.8119886]
[1727665017202,0.25098,156.53,156.51,0.8119886]
[1727665018066,0.12549,156.53,156.51,0.8119886]
[1727665018276,23.776884,156.54,156.51,0.8119886]
[1727665019592,23.776884,156.52,156.51,0.8119886]
[1727665020184,24.027864,156.52,156.51,0.8119886]
[1727665020777,30.416764,156.52,156.51,0.8119886]
[1727665021188,30.165784,156.52,156.51,0.8119886]
[1727665021790,6.3889,156.52,156.51,0.8119886]
[1727665022178,30.416764,156.52,156.51,0.8119886]
[1727665023195,6.3889,156.52,156.51,0.8119886]
[1727665023497,30.416764,156.52,156.51,0.8119886]
[1727665023998,30.416764,156.52,156.51,8.86e-05]
[1727665024787,6.3889,156.52,156.51,8.86e-05]
[1727665026298,6.51439,156.52,156.51,8.86e-05]
[1727665026681,30.416764,156.52,156.51,8.86e-05]
[1727665027597,6.3888,156.53,156.51,8.86e-05]
[1727665028188,1.11307258,156.55,156.51,8.86e-05]
[1727665028402,6.3882,156.54,156.51,8.86e-05]
[1727665029393,7.62636258,156.55,156.51,8.86e-05]
[1727665029799,23.776884,156.54,156.51,8.86e-05]
[1727665030600,30.165084,156.54,156.51,8.86e-05]
[1727665035430,6.51319,156.55,156.51,8.86e-05]
[1727665035715,1.11310096,156.53,156.51,8.86e-05]
[1727665036985,6.3865,156.58,156.51,8.86e-05]
[1727665037396,1.11288775,156.56,156.51,8.86e-05]
[1727665041884,7.50058775,156.56,156.51,8.86e-05]
[1727665043190,24.027864,156.55,156.51,8.86e-05]
[1727665046294,30.416764,156.52,156.51,8.86e-05]
[1727665046503,24.027864,156.52,156.51,8.86e-05]
[1727665046896,30.416764,156.52,156.51,8.86e-05]
[1727665047520,24.027864,156.52,156.51,8.86e-05]
[1727665052129,30.416764,156.52,156.51,8.86e-05]
[1727665053833,24.027864,156.52,156.51,8.86e-05]
[1727665054636,30.416764,156.52,156.51,8.86e-05]
[1727665057724,31.5301277,156.52,156.51,8.86e-05]
[1727665061635,30.417564,156.5,156.49,0.274497]
[1727665067220,7.5022637,156.52,156.49,0.274497]
[1727665067440,6.3894,156.51,156.49,0.274497]
[1727665068734,23.902374,156.51,156.49,0.274497]
[1727665070342,30.291674,156.51,156.49,0.274497]
[1727665072827,23.776884,156.51,156.49,0.274497]
[1727665073152,1.1133637,156.52,156.49,0.274497]
[1727665073820,1.1133637,156.52,156.49,1.55247548]
[1727665074025,1.1133637,156.52,156.5,15.3284]
[1727665074332,1.1133637,156.52,156.51,1.27772073]
[1727665074549,6.3858,156.6,156.51,1.27772073]
[1727665074850,1.1127703,156.55,156.5,15.3284]
[1727665075057,1.1127703,156.55,156.51,7.67008799]
[1727665075232,2.60556302,156.6,156.52,15.4309]
[1727665075427,1.11267654,156.55,156.52,15.4309]
[1727665075645,6.3857,156.6,156.52,15.4309]
[1727665076129,1.11275178,156.62,156.52,15.4309]
[1727665076130,6.3861,156.59,156.52,15.4309]
[1727665076331,1.11275178,156.62,156.52,15.4309]
[1727665076332,6.3868,156.58,156.52,15.4309]
[1727665076549,6.3869,156.57,156.52,15.4309]
[1727665076731,6.3864,156.59,156.52,15.4309]
[1727665077237,30.163384,156.58,156.52,15.4309]
[1727665077831,6.68684819,156.61,156.52,15.4309]
[1727665078148,6.3862,156.59,156.53,1.27757034]
[1727665078527,6.3856,156.61,156.52,15.4309]
[1727665078941,6.3856,156.6,156.52,15.4309]
[1727665079638,23.776884,156.59,156.52,15.4309]
[1727665080336,23.776884,156.59,156.53,1.27745776]
[1727665080531,7.49795178,156.62,156.53,1.27745776]
[1727665080733,6.3853,156.61,156.53,6.3925]
[1727665081865,0.12549,156.61,156.53,6.3925]
[1727665082049,6.3857,156.6,156.53,6.3925]
[1727665082351,6.26488,156.6,156.53,6.3925]
[1727665083358,30.162184,156.61,156.53,6.3925]
[1727665084135,23.776884,156.61,156.55,16.4123]
[1727665084342,1.11275178,156.62,156.55,16.4123]
[1727665084542,7.49775178,156.62,156.55,16.4123]
[1727665085034,30.162184,156.61,156.55,16.4123]
[1727665085439,1.11275178,156.62,156.56,1.27732679]
[1727665085633,1.11275178,156.62,156.55,16.4123]
[1727665085634,7.49765178,156.62,156.55,16.4123]
[1727665086251,1.11275178,156.62,156.55,16.4123]
[1727665086447,1.11275178,156.62,156.57,6.2399]
[1727665088450,23.902374,156.61,156.57,6.2399]
[1727665088861,30.287674,156.61,156.57,6.2399]
[1727665089174,7.49775178,156.62,156.57,6.2399]
[1727665090670,6.63668,156.6,156.57,6.2399]
[1727665090970,1.11275178,156.62,156.55,16.4123]
[1727665090971,30.414364,156.58,156.55,16.4123]
[1727665091475,24.027864,156.58,156.55,16.4123]
[1727665091770,6.3861,156.59,156.55,16.4123]
[1727665091967,1.11275178,156.62,156.55,16.4123]
[1727665091968,6.3857,156.6,156.55,16.4123]
[1727665092275,7.49795178,156.62,156.55,16.4123]
[1727665093766,23.776884,156.61,156.55,16.4123]
[1727665094172,6.3857,156.6,156.55,16.4123]
[1727665095048,0.12549,156.59,156.55,16.4123]
[1727665095252,23.776884,156.56,156.55,16.4123]
[1727665096270,24.88976063,156.56,156.55,16.4123]
[1727665096968,1.11287663,156.56,156.55,16.4123]
[1727665097178,6.68662425,156.63,156.55,16.4123]
[1727665097363,1.1125877,156.59,156.55,16.4123]
[1727665097872,6.3857,156.6,156.55,16.4123]
[1727665098071,1.11256197,156.59,156.55,16.4123]
[1727665098461,1.11256197,156.59,156.56,1.2772635]
[1727665098887,1.11256197,156.59,156.55,16.4123]
[1727665101383,1.11256197,156.59,156.56,1.27721726]
[1727665104075,1.11256197,156.59,156.55,16.4123]
[1727665107579,7.49876197,156.59,156.55,16.4123]
[1727665107784,30.163384,156.58,156.55,16.4123]
[1727665108093,23.776884,156.58,156.55,16.4123]
[1727665108278,1.11256197,156.59,156.55,16.4123]
[1727665110896,23.776884,156.61,156.55,16.4123]
[1727665111193,1.11254262,156.6,156.55,16.4123]
[1727665114385,1.11254262,156.6,156.56,1.27729908]
[1727665115394,24.027864,156.59,156.55,16.4123]
[1727665115699,23.776884,156.56,156.55,16.4123]
[1727665115927,23.776884,156.56,156.53,6.3154]
[1727665116402,23.776884,156.54,156.51,15.5153]
[1727665116602,30.164984,156.54,156.51,15.5153]
[1727665119306,0.25098,156.53,156.51,15.5153]
[1727665119918,23.776884,156.52,156.49,0.274497]
[1727665120800,24.027864,156.53,156.49,0.274497]
[1727665125802,30.416464,156.53,156.49,0.274497]
[1727665126409,24.027864,156.53,156.49,0.274497]
[1727665127397,23.776884,156.53,156.49,0.274497]
[1727665127797,24.027864,156.54,156.49,0.274497]
[1727665129496,30.416064,156.54,156.49,0.274497]
[1727665131503,23.776884,156.52,156.49,0.274497]
[1727665132721,30.165784,156.52,156.49,0.274497]
[1727665136622,0.25098,156.51,156.49,0.274497]
[1727665138419,23.776884,156.52,156.49,0.274497]
[1727665143732,30.417564,156.5,156.49,0.274497]
[1727665151635,31.53115797,156.5,156.49,0.274497]
[1727665157238,6.51649,156.47,156.46,2.15]
[1727665157431,6.3937,156.41,156.38,15.1846]
[1727665157633,0.25098,156.46,156.38,15.1846]
[1727665157634,30.170684,156.4,156.38,15.1846]
[1727665157827,23.776884,156.4,156.38,15.1846]
[1727665158641,23.776884,156.41,156.38,15.1846]
[1727665158844,30.170284,156.41,156.38,15.1846]
[1727665159139,23.776884,156.41,156.38,14.6846]
[1727665159323,6.3927,156.43,156.38,14.6846]
[1727665159545,6.3927,156.43,156.36,6.4601]
[1727665159546,65.9794,156.46,156.36,6.4601]
[1727665159868,77.7046,156.46,156.36,6.4601]
[1727665160020,6.3939,156.4,156.36,5.9601]
[1727665160717,23.776884,156.39,156.36,5.9601]
[1727665160919,0.25098,156.38,156.36,5.9601]
[1727665161119,23.776884,156.39,156.36,5.9601]
[1727665162128,24.027864,156.4,156.36,21.2422]
[1727665163919,24.027864,156.38,156.36,21.2422]
[1727665164548,6.3938,156.4,156.36,21.2422]
[1727665164843,23.776884,156.39,156.36,21.2422]
[1727665166352,6.51929,156.4,156.36,21.2422]
[1727665166353,23.776884,156.4,156.36,21.2422]
[1727665166956,23.776884,156.41,156.36,21.2422]
[1727665167335,0.12549,156.4,156.36,21.2422]
[1727665169952,23.776884,156.41,156.36,21.2422]
[1727665170133,6.3925,156.44,156.36,21.2422]
[1727665170448,6.67902052,156.45,156.36,21.2422]
[1727665170636,6.3929,156.43,156.36,21.2422]
[1727665171637,23.776884,156.42,156.36,21.2422]
[1727665172034,31.28413596,156.42,156.36,21.2422]
[1727665173055,6.3936,156.41,156.36,21.2422]
[1727665180548,6.394,156.4,156.36,21.2422]
[1727665181646,0.25098,156.41,156.36,21.2422]
[1727665182263,6.3939,156.4,156.36,21.2422]
[1727665182566,7.50735196,156.42,156.36,21.2422]
[1727665182944,1.11395196,156.42,156.36,21.2422]
[1727665183293,6.3939,156.4,156.36,21.2422]
[1727665183636,1.11395196,156.42,156.36,21.2422]
[1727665184259,6.3936,156.41,156.36,21.2422]
[1727665184953,23.776884,156.4,156.36,21.2422]
[1727665185269,23.776884,156.41,156.36,21.2422]
[1727665185564,1.11395196,156.42,156.37,1.27902024]
[1727665186757,7.50705196,156.42,156.36,31.53125815]
[1727665188739,7.50705196,156.42,156.36,21.2422]
[1727665188939,23.776884,156.41,156.36,21.2422]
[1727665189145,30.170384,156.41,156.36,21.2422]
[1727665190082,1.11395196,156.42,156.38,10.28905815]
[1727665190242,1.11395196,156.42,156.4,16.0591]
[1727665193156,6.3935,156.41,156.36,5.9601]
[1727665193373,7.50695196,156.42,156.36,5.9601]
[1727665193542,6.393,156.42,156.36,5.9601]
[1727665193862,1.11389196,156.41,156.36,5.9601]
[1727665196064,7.50749196,156.41,156.36,5.9601]
[1727665198061,1.11389196,156.41,156.36,5.9601]
[1727665198267,1.11389196,156.41,156.36,17.52806304]
[1727665198766,1.11389196,156.41,156.36,16.24915815]
[1727665199562,6.3939,156.4,156.35,18.7369886]
[1727665199873,7.50739196,156.41,156.35,18.7369886]
[1727665200574,30.171484,156.39,156.35,18.7369886]
[1727665200769,23.776884,156.4,156.35,18.7369886]
[1727665200968,6.3943,156.39,156.35,18.7369886]
[1727665201171,1.11389196,156.41,156.36,1.27907346]
[1727665201374,1.11389196,156.41,156.35,18.7369886]
[1727665202450,6.3939,156.4,156.35,18.7369886]
[1727665202853,6.3943,156.39,156.35,18.7369886]
[1727665203051,1.11389196,156.41,156.36,36.1663]
[1727665205670,7.50729196,156.41,156.36,36.1663]
[1727665206063,7.50739196,156.41,156.36,36.1663]
[1727665206270,6.3948,156.38,156.36,30.0]
[1727665206468,6.3943,156.39,156.35,18.7369886]
[1727665206666,23.776884,156.4,156.35,18.7369886]
[1727665206980,30.170984,156.4,156.35,18.7369886]
[1727665207178,6.3945,156.39,156.35,18.7369886]
[1727665207679,6.3947,156.38,156.35,18.7369886]
[1727665207976,23.776884,156.4,156.35,18.7369886]
[1727665207977,6.3942,156.39,156.35,18.7369886]
[1727665208278,1.23938196,156.41,156.35,18.7369886]
[1727665208279,7.50729196,156.41,156.35,18.7369886]
[1727665209976,6.3944,156.39,156.35,18.7369886]
[1727665210461,6.3939,156.4,156.35,18.7369886]
[1727665211582,6.3944,156.39,156.35,18.7369886]
[1727665212878,6.3947,156.38,156.35,18.7369886]
[1727665214167,1.11420308,156.37,156.35,18.7369886]
[1727665214466,1.11420308,156.37,156.36,11.56822228]
[1727665214791,6.3921,156.45,156.36,17.96082228]
[1727665214990,1.11371197,156.43,156.36,17.96082228]
[1727665215571,1.11371197,156.43,156.36,16.68165815]
[1727665216011,7.50641197,156.43,156.36,16.68165815]
[1727665216293,7.50641197,156.43,156.36,6.3926]
[1727665217000,30.169984,156.42,156.36,6.3926]
[1727665218594,30.169984,156.42,156.36,7.67150357]
[1727665219394,30.169984,156.42,156.36,6.3926]
[1727665220083,7.50641197,156.43,156.37,1.27890474]
[1727665220785,7.50641197,156.43,156.36,6.3926]
[1727665221296,6.393,156.42,156.36,6.3926]
[1727665221789,7.50641197,156.43,156.37,1.27888809]
[1727665222093,1.11371197,156.43,156.37,11.56794624]
[1727665222280,1.11371197,156.43,156.37,10.28905815]
[1727665224307,1.11371197,156.43,156.41,10.28905815]
[1727665224548,20.09713005,156.54,156.42,7.58744296]
[1727665224705,6.3903,156.49,156.43,15.7022]
[1727665224899,1.11341607,156.46,156.43,15.7022]
[1727665225115,6.3903,156.49,156.43,15.7022]
[1727665225311,1.11333704,156.46,156.43,15.7022]
[1727665225489,1.11333704,156.46,156.43,25.99125815]
[1727665225787,6.3898,156.5,156.43,25.99125815]
[1727665225988,1.11336003,156.46,156.43,15.7022]
[1727665226210,6.3902,156.49,156.43,15.7022]
[1727665226615,1.11336325,156.46,156.45,10.28905815]
[1727665226913,6.67999574,156.52,156.45,10.28905815]
[1727665227094,1.11328656,156.48,156.45,10.28905815]
[1727665227291,13.06889574,156.52,156.46,1.27812035]
[1727665227496,13.06889574,156.52,156.45,10.28905815]
[1727665227702,1.1131636,156.48,156.45,10.28905815]
[1727665227904,6.3889,156.52,156.45,10.28905815]
[1727665228099,7.50298031,156.5,156.43,25.99125815]
[1727665228499,7.50298031,156.5,156.44,1.2781657]
[1727665228704,7.50298031,156.5,156.43,25.99125815]
[1727665228910,7.50298031,156.5,156.44,1.27817133]
[1727665229433,7.50298031,156.5,156.43,25.99125815]
[1727665229616,1.11318031,156.5,156.43,25.99125815]
[1727665230928,7.50298031,156.5,156.43,15.7022]
[1727665231121,7.50298031,156.5,156.43,25.99125815]
[1727665231611,1.11318031,156.5,156.43,25.99125815]
[1727665231913,6.3902,156.49,156.43,25.99125815]
[1727665232617,6.391,156.47,156.43,15.7022]
[1727665232992,1.23867031,156.5,156.43,15.7022]
[1727665233223,1.11318031,156.5,156.44,1.27825969]
[1727665233395,1.11318031,156.5,156.43,15.7022]
[1727665234023,6.3902,156.49,156.43,15.7022]
[1727665236526,6.3902,156.49,156.44,1.2781718]
[1727665237021,6.3902,156.49,156.43,15.7022]
[1727665237616,1.11318031,156.5,156.43,15.7022]
[1727665238720,6.3903,156.49,156.43,15.7022]
[1727665240004,1.11318031,156.5,156.44,1.27820485]
[1727665240211,1.11318031,156.5,156.43,25.99125815]
[1727665240508,7.50328031,156.5,156.43,15.7022]
[1727665240708,1.11318031,156.5,156.43,15.7022]
[1727665240911,6.391,156.47,156.43,15.7022]
[1727665242938,6.3906,156.48,156.43,15.7022]
[1727665244333,6.3914,156.47,156.43,15.7022]
[1727665244510,24.027864,156.49,156.43,15.7022]
[1727665244715,6.3918,156.45,156.43,15.7022]
[1727665244929,6.3922,156.44,156.43,15.7022]
[1727665245240,0.12549,156.48,156.43,15.7022]
[1727665245535,6.3917,156.46,156.43,15.7022]
[1727665247530,0.12549,156.48,156.43,15.7022]
[1727665247833,6.3918,156.45,156.43,15.7022]
[1727665248517,7.50543411,156.45,156.43,15.7022]
[1727665249522,6.3922,156.44,156.43,15.7022]
[1727665249823,1.11363411,156.45,156.39,16.5873]
[1727665250032,6.3926,156.43,156.39,16.5873]
[1727665253028,6.393,156.42,156.39,16.5873]
[1727665253230,6.393,156.43,156.39,16.5873]
[1727665253428,24.027864,156.44,156.39,16.5873]
[1727665253638,6.3935,156.41,156.39,16.5873]
[1727665253945,24.027864,156.44,156.39,15.7823]
[1727665255129,6.3935,156.41,156.39,15.7823]
[1727665257647,6.3935,156.41,156.38,6.1337]
[1727665258349,6.394,156.4,156.38,6.1337]
[1727665259053,6.3935,156.41,156.38,6.1337]
[1727665261057,6.3935,156.41,156.35,19.6227886]
[1727665261263,6.3943,156.39,156.35,19.6227886]
[1727665261675,6.67725179,156.43,156.35,19.6227886]
[1727665261965,6.3947,156.38,156.35,19.6227886]
[1727665262157,6.3944,156.39,156.35,19.6227886]
[1727665262360,6.3938,156.41,156.36,1.27906073]
[1727665262763,6.3939,156.4,156.35,29.91184675]
[1727665262959,6.3939,156.4,156.35,19.6227886]
[1727665265254,6.3947,156.38,156.35,19.6227886]
[1727665265491,6.3943,156.39,156.35,19.6227886]
[1727665267755,6.3947,156.38,156.35,19.6227886]
[1727665268774,1.11412426,156.37,156.35,19.6227886]
[1727665269950,6.3954,156.36,156.35,2.9619886]
[1727665270143,7.50922426,156.37,156.35,2.9619886]
[1727665271268,6.3954,156.36,156.35,2.9619886]
[1727665271775,7.50922426,156.37,156.35,2.9619886]
[1727665273349,6.3954,156.36,156.35,2.9619886]
[1727665273671,30.423264,156.36,156.35,2.9619886]
[1727665277756,23.776884,156.36,156.35,2.9619886]
[1727665278254,7.50922426,156.37,156.35,2.9619886]
[1727665278572,1.11412426,156.37,156.35,2.9619886]
[1727665280356,7.50922426,156.37,156.35,2.9619886]
[1727665281958,1.11412426,156.37,156.35,2.9619886]
[1727665282585,7.50922426,156.37,156.35,2.9619886]
[1727665283683,1.11412426,156.37,156.35,2.9619886]
[1727665285287,7.50952426,156.37,156.35,2.9619886]
[1727665287193,1.11412426,156.37,156.35,2.9619886]
[1727665289672,6.3938,156.41,156.35,2.9619886]
[1727665290168,6.3945,156.39,156.35,2.9619886]
[1727665291086,6.3946,156.38,156.35,2.9619886]
[1727665291491,6.3947,156.38,156.35,2.9619886]
[1727665292889,30.172284,156.36,156.35,2.9619886]
[1727665293097,30.423264,156.36,156.35,2.9619886]
[1727665294381,56.423164,156.26,156.25,2.15]
[1727665294621,6.4016,156.21,156.18,0.274497]
[1727665295272,6.65258,156.21,156.18,0.274497]
[1727665295468,6.4016,156.21,156.18,0.274497]
[1727665295680,30.178484,156.21,156.18,0.274497]
[1727665295887,30.429464,156.21,156.18,0.274497]
[1727665296094,30.303974,156.21,156.18,0.274497]
[1727665296508,50.178484,156.21,156.18,0.274497]
[1727665297078,26.4016,156.21,156.18,0.274497]
[1727665300494,6.4016,156.21,156.18,0.274497]
[1727665302278,30.178484,156.21,156.18,0.274497]
[1727665302715,6.4016,156.21,156.18,0.274497]
[1727665302913,23.776884,156.21,156.18,0.274497]
[1727665303086,6.4024,156.19,156.18,0.274497]
[1727665309283,6.4024,156.19,156.15,2.15]
[1727665309284,6.4036,156.16,156.15,2.15]
[1727665310104,6.4036,156.16,156.15,1.95738309]
[1727665310808,7.51938802,156.16,156.15,1.95738309]
[1727665311313,6.87918315,156.16,156.15,1.95738309]
[1727665314107,1.11578802,156.16,156.15,1.95738309]
[1727665317997,7.51938802,156.16,156.15,1.95738309]
[1727665318196,1.11578802,156.16,156.15,1.95738309]
[1727665321901,1.11578802,156.16,156.15,24.79008309]
[1727665322102,6.66928331,156.22,156.16,6.4036]
[1727665322313,6.4008,156.23,156.17,1.28015004]
[1727665322511,6.4008,156.23,156.16,6.4036]
[1727665322820,1.11513781,156.25,156.2,16.4433]
[1727665322992,6.3996,156.26,156.21,1.27996828]
[1727665323195,6.674595,156.3,156.22,6.3894]
[1727665323493,2.56176281,156.37,156.25,6.3998]
[1727665323708,34.53987167,156.38,156.25,16.14102487]
[1727665323903,34.53987167,156.38,156.22,6.3894]